bitfinex-derivatives/quotes_ETHF0:USTF0_20250704
["timestamp","ask_amount","ask_price","bid_price","bid_amount"]
[1751647994701,0.80443,2485.4,2485.3,0.7055]
[1751647995800,0.80443,2485.4,2485.3,1.50996]
[1751647996299,0.80443,2485.4,2485.3,0.7055]
[1751647996502,0.80443,2485.4,2485.3,1.50996]
[1751647999804,0.80443,2485.5,2485.4,0.80441]
[1751648000011,0.80443,2485.4,2485.3,1.50993]
[1751648001000,0.80443,2485.4,2485.3,0.7055]
[1751648002607,1.93238166,2485.4,2485.3,0.7055]
[1751648003207,1.93238166,2485.4,2485.3,1.50996]
[1751648003404,1.12795166,2485.4,2485.3,1.50996]
[1751648003603,1.93238166,2485.4,2485.3,1.50996]
[1751648004005,1.93238166,2485.4,2485.3,0.7055]
[1751648005798,1.9317228,2485.4,2485.3,0.7055]
[1751648007510,1.1272928,2485.4,2485.3,1.50996]
[1751648007710,37.9012928,2485.4,2485.3,1.50996]
[1751648007906,38.7057228,2485.4,2485.3,1.50996]
[1751648008511,1.9317228,2485.4,2485.3,1.50996]
[1751648008711,38.7027228,2485.4,2485.3,1.50996]
[1751648012617,37.8982928,2485.4,2485.3,1.50996]
[1751648012812,0.80442,2485.5,2485.4,0.80443]
[1751648013013,38.69827444,2485.5,2485.4,0.80443]
[1751648013211,38.69827444,2485.5,2485.4,2.24333]
[1751648016117,1.93127444,2485.5,2485.4,2.24333]
[1751648016313,38.69527444,2485.5,2485.4,2.24333]
[1751648017314,36.762,2485.6,2485.5,0.80439]
[1751648017514,37.89089277,2485.6,2485.5,2.11419]
[1751648018317,36.762,2485.6,2485.5,2.11419]
[1751648019917,37.56636,2485.6,2485.5,2.11419]
[1751648020225,0.80443,2485.5,2485.3,0.7055]
[1751648020421,0.80446,2485.3,2485.2,4.01227]
[1751648021817,0.80444,2485.4,2485.3,0.80442]
[1751648022317,1.92540772,2485.4,2485.3,0.80442]
[1751648024114,0.80446,2485.3,2485.2,4.01226]
[1751648024317,1.92542772,2485.3,2485.2,4.01226]
[1751648025719,1.12096772,2485.3,2485.2,4.01226]
[1751648026218,1.92542772,2485.3,2485.2,4.01226]
[1751648029419,1.92542772,2485.3,2485.2,3.2078]
[1751648037320,1.92542772,2485.3,2485.2,3.8951]
[1751648037527,1.12096772,2485.3,2485.2,4.69959]
[1751648038024,1.92542772,2485.3,2485.2,3.8951]
[1751648039726,1.12096772,2485.3,2485.2,4.69959]
[1751648039924,37.54543,2485.4,2485.3,0.80446]
[1751648040131,37.54543,2485.4,2485.3,2.19326]
[1751648040132,1.94332221,2485.4,2485.3,2.19326]
[1751648041327,1.94332221,2485.4,2485.3,1.3888]
[1751648041528,1.94332221,2485.4,2485.3,2.19326]
[1751648041728,1.94332221,2485.4,2485.3,1.3888]
[1751648042427,0.80446,2485.3,2485.2,3.8951]
[1751648042632,1.13889221,2485.3,2485.2,4.69959]
[1751648043029,0.80442,2485.5,2485.3,2.01113]
[1751648043030,36.737,2485.5,2485.3,2.01113]
[1751648043328,37.54136,2485.6,2485.5,0.80437]
[1751648043523,0.80439,2485.5,2485.4,1.3758]
[1751648043722,0.80439,2485.5,2485.4,2.1802]
[1751648044222,0.80439,2485.5,2485.4,1.3758]
[1751648045738,0.80439,2485.5,2485.4,2.18023]
[1751648045929,0.80439,2485.5,2485.4,1.3758]
[1751648047232,0.80439,2485.5,2485.4,2.18023]
[1751648047935,36.736,2485.6,2485.5,0.80439]
[1751648048137,38.6608409,2485.6,2485.5,2.18129]
[1751648050947,1.1254809,2485.6,2485.5,2.18129]
[1751648051134,4.0121,2485.8,2485.7,0.80433]
[1751648051438,41.86424327,2485.8,2485.7,0.80433]
[1751648051733,37.85114327,2485.8,2485.7,0.80433]
[1751648051933,37.52929,2485.8,2485.7,1.3764]
[1751648052126,37.52929,2485.8,2485.7,2.18073]
[1751648052734,37.52829,2485.9,2485.8,0.80424]
[1751648052935,0.80429,2485.9,2485.8,2.18064]
[1751648053135,0.80426,2486.0,2485.9,0.80423]
[1751648053341,1.11725356,2486.0,2485.9,2.14803]
[1751648053540,37.52623,2486.0,2485.9,2.14806]
[1751648054033,0.80423,2486.0,2485.9,2.14806]
[1751648054235,6.24666665,2486.7,2485.9,1.3438]
[1751648054432,2.0102,2486.5,2486.1,3.2078]
[1751648054635,0.80415,2486.3,2486.2,2.84593]
[1751648055537,0.80412,2486.4,2486.3,0.80411]
[1751648055734,0.80412,2486.4,2486.3,2.14791]
[1751648056432,4.01182,2486.7,2486.6,0.80404]
[1751648056636,41.83386337,2486.7,2486.5,0.80405]
[1751648056938,39.9268,2486.7,2486.6,0.80404]
[1751648057532,39.9228,2486.7,2486.6,0.80404]
[1751648057833,3.2078,2486.7,2486.6,0.80404]
[1751648058037,36.714,2486.7,2486.6,0.80404]
[1751648058235,14.5848,2487.0,2486.4,6.55703]
[1751648058236,0.80394,2486.9,2486.8,0.80395]
[1751648058439,15.38873,2487.0,2486.9,0.80394]
[1751648058634,0.80397,2486.9,2486.8,0.80395]
[1751648059743,0.80397,2486.8,2486.7,2.86198]
[1751648060243,0.80397,2486.8,2486.7,2.058]
[1751648060440,0.80397,2486.8,2486.7,2.862]
[1751648060637,0.80397,2486.8,2486.7,2.058]
[1751648060850,0.80407,2486.5,2486.4,4.01189]
[1751648061035,0.80406,2486.6,2486.5,0.80405]
[1751648061230,0.80406,2486.6,2486.5,2.14265]
[1751648061430,0.80406,2486.6,2486.5,1.3386]
[1751648062036,0.80406,2486.6,2486.5,2.14267]
[1751648062940,0.80406,2486.6,2486.5,1.3386]
[1751648063442,0.80407,2486.5,2486.4,3.2078]
[1751648064239,0.80405,2486.6,2486.5,0.80405]
[1751648064642,0.80405,2486.6,2486.4,4.01189]
[1751648064830,0.80405,2486.6,2486.5,0.80407]
[1751648065235,4.11326,2486.9,2486.5,0.80407]
[1751648065236,39.9168,2487.0,2486.5,2.01018]
[1751648065443,12.0518,2487.2,2486.7,5.21782]
[1751648065633,11.375,2487.2,2487.1,0.80388]
[1751648066039,12.17884,2487.2,2487.0,0.80389]
[1751648066338,0.80388,2487.1,2487.0,0.80389]
[1751648066534,0.80391,2487.0,2486.9,0.6702]
[1751648066838,2.00971,2487.1,2486.5,2.01018]
[1751648067040,12.0518,2487.2,2486.8,0.80396]
[1751648067041,0.80395,2486.9,2486.8,0.80396]
[1751648068042,0.80398,2486.8,2486.7,0.80398]
[1751648068349,2.00979,2487.0,2486.6,2.041]
[1751648068543,0.804,2486.7,2486.6,0.6702]
[1751648069942,0.804,2486.7,2486.6,1.47424]
[1751648070141,0.804,2486.7,2486.6,0.6702]
[1751648071042,0.804,2486.7,2486.6,1.47424]
[1751648072543,0.804,2486.7,2486.6,0.6702]
[1751648073044,0.804,2486.7,2486.6,1.47424]
[1751648073346,0.804,2486.7,2486.6,0.6702]
[1751648073539,0.80407,2486.5,2486.4,0.6839]
[1751648074045,0.80407,2486.5,2486.4,1.488]
[1751648074736,0.80407,2486.5,2486.4,0.6839]
[1751648075243,0.80407,2486.5,2486.4,1.488]
[1751648075438,0.80407,2486.5,2486.4,0.6839]
[1751648075859,0.8041,2486.4,2486.3,3.2078]
[1751648076043,0.8041,2486.4,2486.3,4.01193]
[1751648076445,0.8041,2486.4,2486.3,3.2078]
[1751648077045,0.8041,2486.4,2486.3,4.01193]
[1751648077241,0.8041,2486.4,2486.3,3.2078]
[1751648077847,0.80417,2486.2,2486.1,1.456]
[1751648078551,0.80417,2486.2,2486.1,0.6518]
[1751648079252,0.8042,2486.1,2486.0,3.2078]
[1751648080052,0.8042,2486.1,2485.7,0.6581]
[1751648080053,0.8043,2485.8,2485.7,0.6581]
[1751648080246,0.8043,2485.8,2485.7,1.46243]
[1751648080449,0.8043,2485.8,2485.7,1.9725]
[1751648080652,0.8043,2485.8,2485.7,2.77682]
[1751648080952,0.80427,2485.9,2485.8,0.80428]
[1751648081153,0.80427,2485.9,2485.8,2.19928]
[1751648082948,0.80427,2485.9,2485.8,1.395]
[1751648083148,0.80427,2485.9,2485.8,2.1993]
[1751648083354,0.80425,2486.0,2485.9,0.80425]
[1751648083751,0.80426,2485.9,2485.8,2.19927]
[1751648086156,0.8043,2485.8,2485.7,0.6581]
[1751648086854,0.80436,2485.6,2485.5,0.7045]
[1751648087052,0.80436,2485.6,2485.5,1.372]
[1751648087353,0.80436,2485.6,2485.5,2.17639]
[1751648088356,0.80436,2485.6,2485.5,1.372]
[1751648089061,0.80443,2485.4,2485.3,1.3196]
[1751648089251,0.80443,2485.4,2485.3,1.9871]
[1751648089748,0.80443,2485.4,2485.3,0.6675]
[1751648093557,0.80441,2485.5,2485.4,0.80441]
[1751648093752,0.80441,2485.5,2485.4,1.386]
[1751648095460,0.80441,2485.5,2485.4,2.19043]
[1751648095662,0.80441,2485.5,2485.4,1.386]
[1751648096359,0.80443,2485.4,2485.3,0.6675]
[1751648098462,0.80443,2485.4,2485.3,1.47196]
[1751648098668,0.80443,2485.4,2485.3,0.6675]
[1751648099356,0.80443,2485.4,2485.3,1.47196]
[1751648099561,0.80443,2485.4,2485.3,0.6675]
[1751648099963,0.80443,2485.4,2485.3,1.47196]
[1751648101363,0.80443,2485.4,2485.3,0.6675]
[1751648101562,0.80443,2485.4,2485.3,1.47196]
[1751648102069,0.80436,2485.6,2485.5,0.80438]
[1751648102264,0.80441,2485.5,2485.4,0.8044]
[1751648102464,0.80441,2485.5,2485.4,1.4404]
[1751648103365,0.80441,2485.5,2485.4,2.24483]
[1751648103864,0.80441,2485.5,2485.4,1.4404]
[1751648104564,0.80443,2485.4,2485.3,1.47194]
[1751648104765,0.80443,2485.4,2485.3,0.6675]
[1751648105066,0.80443,2485.4,2485.3,1.47196]
[1751648105260,0.80436,2485.7,2485.6,0.80435]
[1751648105566,0.80437,2485.6,2485.5,0.80437]
[1751648106162,0.80439,2485.5,2485.4,1.4347]
[1751648106362,0.80443,2485.4,2485.3,3.8753]
[1751648106563,0.80443,2485.4,2485.3,4.67976]
[1751648106761,0.80443,2485.4,2485.3,3.8753]
[1751648107272,0.80443,2485.4,2485.3,4.67976]
[1751648107465,0.80441,2485.5,2485.3,3.8753]
[1751648107660,0.80437,2485.6,2485.3,5.88643]
[1751648107866,0.80437,2485.6,2485.5,0.80437]
[1751648108269,1.94745682,2485.6,2485.5,0.80437]
[1751648108462,1.94745682,2485.6,2485.4,1.4347]
[1751648108463,0.80439,2485.5,2485.4,1.4347]
[1751648108769,0.80439,2485.5,2485.4,2.23913]
[1751648109468,0.80438,2485.6,2485.5,0.80436]
[1751648109664,2.01076,2485.8,2485.4,2.2391]
[1751648109665,0.80439,2485.5,2485.4,2.2391]
[1751648110470,0.80439,2485.5,2485.4,1.4347]
[1751648110672,0.80439,2485.5,2485.4,2.23913]
[1751648110864,0.80439,2485.5,2485.4,1.4347]
[1751648111062,1.94153103,2485.5,2485.4,2.23913]
[1751648111368,1.94153103,2485.5,2485.4,1.4347]
[1751648111564,0.80443,2485.4,2485.3,4.67973]
[1751648112159,0.80442,2485.5,2485.4,0.80441]
[1751648112571,1.94189358,2485.5,2485.4,0.80441]
[1751648112767,0.80443,2485.4,2485.3,3.8753]
[1751648112969,0.80443,2485.4,2485.3,4.67976]
[1751648113269,0.80443,2485.4,2485.3,3.8753]
[1751648114172,0.80443,2485.4,2485.3,3.2078]
[1751648114368,1.94670804,2485.4,2485.3,3.2078]
[1751648114568,2.59740804,2485.4,2485.3,3.2078]
[1751648115274,1.94670804,2485.4,2485.3,3.2078]
[1751648115574,1.14227804,2485.4,2485.3,4.01226]
[1751648116169,0.80452,2485.2,2485.0,4.01234]
[1751648116468,3.2078,2485.6,2485.1,2.6626]
[1751648116668,1.14313729,2485.5,2485.4,0.80443]
[1751648116874,2.39848185,2486.1,2485.5,2.01095]
[1751648117068,2.39848185,2486.3,2486.2,0.80417]
[1751648117266,0.80417,2486.2,2486.1,0.80417]
[1751648117566,0.80416,2486.3,2486.2,0.80416]
[1751648117768,3.2078,2486.4,2486.1,1.4257]
[1751648118070,0.8042,2486.1,2486.0,1.50392]
[1751648118772,0.8042,2486.1,2486.0,0.6997]
[1751648119473,0.8042,2486.1,2486.0,1.50393]
[1751648119675,0.80417,2486.2,2486.1,0.80419]
[1751648120376,4.01192,2486.4,2486.3,0.80413]
[1751648120776,0.80414,2486.3,2486.2,0.80415]
[1751648121276,0.80413,2486.4,2486.3,0.80413]
[1751648122572,0.80408,2486.5,2486.4,0.80408]
[1751648122876,0.80405,2486.6,2486.5,0.80404]
[1751648123076,0.80407,2486.5,2486.4,2.78769]
[1751648124176,0.80407,2486.5,2486.4,0.6599]
[1751648124381,0.80406,2486.6,2486.5,0.80406]
[1751648124673,0.80403,2486.7,2486.5,0.80406]
[1751648124873,0.80404,2486.6,2486.5,0.80406]
[1751648125075,0.80404,2486.6,2486.4,1.46398]
[1751648125276,0.80402,2486.7,2486.5,0.80406]
[1751648125574,0.80402,2486.7,2486.6,0.80404]
[1751648125768,11.362,2486.8,2486.7,0.80401]
[1751648126176,12.16597,2486.8,2486.7,0.80401]
[1751648126376,0.80402,2486.7,2486.6,0.80402]
[1751648126778,12.16599,2486.8,2486.7,0.80401]
[1751648128777,0.80402,2486.7,2486.6,0.80401]
[1751648129180,12.166,2486.8,2486.7,0.80401]
[1751648130476,11.362,2486.8,2486.7,0.80401]
[1751648130678,12.16597,2486.8,2486.7,0.80401]
[1751648131180,0.80402,2486.7,2486.6,0.80401]
[1751648131581,12.166,2486.8,2486.7,0.80401]
[1751648132282,57.941,2487.0,2486.9,0.80394]
[1751648132582,3.2078,2487.2,2487.1,0.80388]
[1751648132783,4.01164,2487.2,2487.1,0.80388]
[1751648134992,0.80387,2487.1,2487.0,2.18869]
[1751648135192,0.804,2486.7,2486.3,2.01025]
[1751648135390,0.80389,2487.1,2486.6,3.2078]
[1751648135689,37.44885,2487.2,2487.1,0.80384]
[1751648136297,36.645,2487.2,2486.9,1.3352]
[1751648136593,0.80391,2487.0,2486.9,3.53092]
[1751648138594,0.80391,2487.0,2486.9,2.13912]
[1751648139698,0.80391,2487.0,2486.9,1.3352]
[1751648139899,0.80394,2486.9,2486.8,0.80394]
[1751648140095,0.80394,2486.9,2486.8,1.45304]
[1751648140894,0.80397,2486.8,2486.7,0.6672]
[1751648141198,0.804,2486.7,2486.6,3.8569]
[1751648141695,0.804,2486.7,2486.6,0.6491]
[1751648142298,0.804,2486.7,2486.6,1.45313]
[1751648142799,36.645,2487.2,2486.6,5.86697]
[1751648142994,0.80391,2487.0,2486.9,0.80392]
[1751648143190,0.80394,2486.9,2486.8,0.80394]
[1751648143997,0.80393,2487.0,2486.9,0.80393]
[1751648144298,0.80395,2486.9,2486.8,0.80395]
[1751648144497,0.80392,2487.0,2486.9,0.80392]
[1751648145602,0.80389,2487.1,2487.0,0.80389]
[1751648145803,0.80392,2487.0,2486.9,0.80391]
[1751648146100,0.80392,2487.0,2486.9,2.10831]
[1751648147103,0.8039,2487.1,2486.9,2.10831]
[1751648147302,0.8039,2487.0,2486.9,2.10831]
[1751648148594,0.8039,2487.0,2486.9,0.80391]
[1751648149103,1.94364542,2487.0,2486.9,0.80392]
[1751648150408,1.13972542,2487.0,2486.9,2.13322]
[1751648150799,0.80384,2487.2,2487.1,0.80384]
[1751648151003,1.14010198,2487.2,2487.1,0.80384]
[1751648151704,1.94394198,2487.2,2487.1,0.80384]
[1751648152607,0.80389,2487.1,2487.0,0.80388]
[1751648152806,1.94399198,2487.1,2487.0,2.13318]
[1751648154008,1.14010198,2487.1,2487.0,2.13318]
[1751648154198,1.94397198,2487.1,2487.0,2.13318]
[1751648154397,1.14010198,2487.1,2487.0,2.13318]
[1751648155501,0.80383,2487.3,2487.2,0.80384]
[1751648155711,1.93574847,2487.3,2487.2,0.80384]
[1751648156309,0.80384,2487.2,2487.1,2.20355]
[1751648156610,1.13191847,2487.2,2487.1,2.20355]
[1751648156910,0.80374,2487.6,2487.5,0.80374]
[1751648157308,0.80375,2487.5,2487.4,0.80375]
[1751648157504,1.12894621,2487.5,2487.4,2.13587]
[1751648157905,77.425,2487.9,2487.6,0.8037]
[1751648158107,0.80368,2487.7,2487.6,0.8037]
[1751648158306,1.92697953,2487.7,2487.6,0.8037]
[1751648159005,0.80371,2487.6,2487.5,1.3321]
[1751648159299,0.80371,2487.6,2487.5,2.13584]
[1751648160211,0.80371,2487.6,2487.5,2.13583]
[1751648161412,0.80377,2487.4,2487.3,3.2078]
[1751648161606,0.80377,2487.4,2486.6,3.99094407]
[1751648161607,1.11165681,2487.4,2486.6,3.2078]
[1751648161804,0.804,2486.7,2486.6,3.9082]
[1751648162003,0.80399,2486.8,2486.6,4.71222]
[1751648162207,0.804,2486.7,2486.6,3.9082]
[1751648162712,1.10999661,2486.7,2486.3,6.041]
[1751648162915,1.10999661,2486.7,2486.3,3.8722]
[1751648162916,0.8041,2486.4,2486.3,3.8722]
[1751648163413,2.01004,2486.7,2486.3,3.8722]
[1751648163414,0.80408,2486.5,2486.4,0.8041]
[1751648163614,0.80406,2486.6,2486.4,0.8041]
[1751648164311,0.8041,2486.4,2486.3,3.8722]
[1751648164609,0.80407,2486.5,2486.3,3.8722]
[1751648164810,0.80407,2486.5,2486.3,4.67631]
[1751648165119,0.80408,2486.5,2486.3,3.8722]
[1751648165315,0.80406,2486.6,2486.4,0.80409]
[1751648165715,0.80407,2486.5,2486.4,0.80409]
[1751648166016,0.80406,2486.6,2486.4,0.80409]
[1751648166610,0.80407,2486.5,2486.3,4.67631]
[1751648167009,0.80404,2486.6,2486.3,3.8722]
[1751648167210,0.80408,2486.5,2486.4,0.80408]
[1751648167418,0.80408,2486.5,2486.3,3.8722]
[1751648167717,0.80408,2486.5,2486.4,0.8041]
[1751648168018,0.80407,2486.5,2486.4,2.1458]
[1751648168315,0.80407,2486.5,2486.4,1.3417]
[1751648168510,0.80407,2486.5,2486.4,2.1458]
[1751648168917,0.80407,2486.5,2486.4,1.3417]
[1751648169113,0.80407,2486.5,2486.4,2.1458]
[1751648169618,0.80405,2486.6,2486.4,2.14578]
[1751648169818,0.80405,2486.6,2486.5,0.80407]
[1751648170018,0.80402,2486.7,2486.5,1.4168]
[1751648170215,5.89586,2486.9,2486.5,2.22086]
[1751648170413,0.80403,2486.6,2486.5,2.22086]
[1751648170614,3.2078,2486.9,2486.5,1.4168]
[1751648170914,1.1344076,2486.8,2486.7,0.804]
[1751648171111,1.1344076,2486.8,2486.7,2.9203]
[1751648171312,0.80392,2487.0,2486.9,0.80394]
[1751648171522,1.93832661,2487.0,2486.9,0.80394]
[1751648171914,0.80392,2487.0,2486.9,0.80394]
[1751648172717,0.80397,2486.8,2486.7,2.92028]
[1751648173318,0.80396,2486.9,2486.8,0.80396]
[1751648173618,0.80396,2486.9,2486.8,2.13596]
[1751648173926,0.80396,2486.9,2486.8,1.332]
[1751648174119,0.80396,2486.9,2486.8,2.13597]
[1751648174321,0.80397,2486.8,2486.7,0.6995]
[1751648174720,0.80397,2486.8,2486.7,1.5035]
[1751648174920,0.80397,2486.8,2486.7,2.8844]
[1751648175119,0.80397,2486.8,2486.7,2.0804]
[1751648175724,0.80397,2486.8,2486.7,2.8844]
[1751648176920,0.80397,2486.8,2486.7,2.0804]
[1751648177224,0.80396,2486.9,2486.8,0.80396]
[1751648179120,0.80391,2487.0,2486.9,0.80391]
[1751648180024,0.80395,2486.9,2486.8,0.80395]
[1751648180722,0.80392,2487.0,2486.9,0.80392]
[1751648181322,0.80387,2487.2,2487.1,0.80387]
[1751648181522,0.80388,2487.1,2487.0,0.80388]
[1751648182025,0.80387,2487.2,2487.1,0.80386]
[1751648184725,1.12554864,2487.8,2487.7,1.48608]
[1751648184928,1.92919864,2487.8,2487.7,1.48608]
[1751648185429,1.12554864,2487.8,2487.7,1.48608]
[1751648186226,0.80364,2487.8,2487.7,1.48608]
[1751648186524,0.80369,2487.7,2487.4,2.0894]
[1751648186723,0.80369,2487.7,2487.5,0.6824]
[1751648186928,0.80369,2487.7,2487.6,0.80371]
[1751648187128,0.80369,2487.7,2487.5,1.48612]
[1751648187523,0.80371,2487.6,2487.5,1.48612]
[1751648187722,0.80371,2487.6,2487.5,0.80372]
[1751648187923,0.8037,2487.7,2487.5,0.80372]
[1751648188124,0.8037,2487.7,2487.6,0.80371]
[1751648188323,0.80369,2487.7,2487.5,0.80372]
[1751648188527,0.80369,2487.7,2487.6,0.80371]
[1751648188727,1.91933505,2487.7,2487.5,0.80372]
[1751648188919,1.3456,2487.8,2487.5,0.80372]
[1751648189125,1.1134898,2487.7,2487.6,0.80371]
[1751648190624,1.9171798,2487.7,2487.6,0.80371]
[1751648192032,1.1134898,2487.7,2487.6,0.80371]
[1751648193432,1.9171698,2487.7,2487.6,0.80371]
[1751648193731,0.80368,2487.7,2487.6,0.80371]
[1751648195337,0.8037,2487.7,2487.6,0.8037]
[1751648195629,0.80371,2487.7,2487.6,0.8037]
[1751648196133,2.67247,2488.0,2487.7,0.80368]
[1751648196430,4.32092382,2487.9,2487.6,0.80368]
[1751648196630,0.80369,2487.7,2487.6,0.80368]
[1751648197532,0.80372,2487.6,2487.5,0.80372]
[1751648198427,0.80371,2487.7,2487.6,0.8037]
[1751648199230,0.80373,2487.6,2487.5,0.80373]
[1751648199735,0.8037,2487.7,2487.6,0.8037]
[1751648200038,0.80372,2487.6,2487.5,0.80372]
[1751648200624,0.80372,2487.6,2487.3,5.90382]
[1751648200625,0.80377,2487.4,2487.3,0.6865]
[1751648200835,0.80384,2487.2,2487.1,1.46407]
[1751648201135,4.12427,2487.5,2487.1,2.12694]
[1751648201335,0.80384,2487.2,2487.1,2.12694]
[1751648202033,0.80384,2487.3,2487.2,0.80384]
[1751648202330,0.80384,2487.2,2487.1,2.12695]
[1751648203230,0.80384,2487.2,2487.1,1.3231]
[1751648203735,0.80384,2487.2,2487.1,2.12697]
[1751648203939,0.80384,2487.2,2487.1,1.3231]
[1751648204436,0.80384,2487.2,2487.1,2.12697]
[1751648204840,0.80383,2487.3,2487.1,2.12697]
[1751648205042,0.80383,2487.3,2487.2,0.80384]
[1751648205340,2.72297,2487.5,2487.1,2.12694]
[1751648205543,0.80384,2487.2,2487.1,2.12696]
[1751648206040,2.00937,2487.5,2487.2,0.80383]
[1751648206241,0.80383,2487.3,2487.2,1.4144]
[1751648206430,2.00929,2487.6,2487.2,2.21824]
[1751648206634,0.8038,2487.4,2487.3,0.80381]
[1751648206838,1.91564319,2487.4,2487.3,1.4144]
[1751648207039,1.91564319,2487.4,2487.3,2.21821]
[1751648207442,1.91564319,2487.4,2487.3,1.4144]
[1751648208541,1.91564319,2487.4,2487.3,2.21821]
[1751648209642,1.91564319,2487.4,2487.3,1.4144]
[1751648210036,0.80381,2487.3,2487.2,0.80382]
[1751648210238,1.91565319,2487.3,2487.2,0.80382]
[1751648210438,1.91565319,2487.3,2487.2,2.13252]
[1751648210640,2.00909,2487.9,2487.4,0.80377]
[1751648210944,0.80376,2487.5,2487.4,0.80377]
[1751648211338,1.91199396,2487.5,2487.4,0.80376]
[1751648211738,0.80378,2487.4,2487.3,2.13248]
[1751648211940,0.80377,2487.5,2487.4,0.80377]
[1751648212240,1.91201787,2487.5,2487.4,0.80377]
[1751648212446,0.80378,2487.4,2487.3,2.13249]
[1751648213246,0.80378,2487.4,2487.3,1.3287]
[1751648213645,0.80378,2487.4,2487.3,2.13251]
[1751648213846,1.90878057,2487.4,2487.3,2.13251]
[1751648214353,1.90878057,2487.4,2487.3,1.3287]
[1751648214642,1.90878057,2487.4,2487.3,2.13251]
[1751648216345,1.90878057,2487.4,2487.3,1.3287]
[1751648216546,0.80381,2487.3,2487.2,0.80382]
[1751648217445,0.80384,2487.2,2487.1,0.6602]
[1751648217846,2.0093,2487.6,2487.1,0.6602]
[1751648218040,1.10443403,2487.5,2487.1,1.9857]
[1751648218246,1.90821403,2487.4,2487.3,0.80381]
[1751648218448,1.10443403,2487.4,2487.3,0.80381]
[1751648218850,1.90821403,2487.4,2487.3,0.80381]
[1751648219251,1.10443403,2487.4,2487.3,0.80381]
[1751648219552,1.90821403,2487.4,2487.3,0.80381]
[1751648220446,0.80381,2487.3,2487.2,2.12931]
[1751648220650,0.8038,2487.4,2487.3,0.8038]
[1751648220853,0.8038,2487.4,2487.3,2.1667]
[1751648221048,1.90416001,2487.4,2487.3,2.1667]
[1751648221248,0.80377,2487.5,2487.4,0.80378]
[1751648221448,0.80378,2487.4,2487.3,2.1667]
[1751648221852,1.9151867,2487.4,2487.3,2.1667]
[1751648222251,1.1114067,2487.4,2487.1,0.6602]
[1751648222451,0.80384,2487.2,2487.1,2.82695]
[1751648222752,0.80384,2487.3,2487.2,0.80383]
[1751648223555,1.91514539,2487.4,2487.3,0.80381]
[1751648223756,0.80382,2487.3,2487.2,2.17103]
[1751648223955,1.91516539,2487.3,2487.2,2.17103]
[1751648224651,1.91516539,2487.3,2487.2,2.17104]
[1751648226256,1.91516539,2487.3,2487.2,1.3672]
[1751648226456,1.91516539,2487.3,2487.2,2.17104]
[1751648227856,1.91516539,2487.3,2487.2,1.3672]
[1751648228252,1.91516539,2487.3,2487.2,2.17104]
[1751648230557,0.80384,2487.2,2487.1,0.6602]
[1751648230758,1.91518539,2487.2,2487.1,0.6602]
[1751648231959,1.91518539,2487.2,2487.1,1.3328]
[1751648232361,1.91518539,2487.2,2487.1,0.6726]
[1751648237466,1.91518539,2487.2,2487.1,1.47647]
[1751648237666,1.91518539,2487.2,2487.1,0.6726]
[1751648238168,1.91518539,2487.2,2487.1,1.47647]
[1751648238565,1.91518539,2487.2,2487.1,0.6726]
[1751648241669,1.91518539,2487.2,2487.1,0.6726]
[1751648242071,0.80394,2486.9,2486.8,1.4376]
[1751648242267,0.80394,2486.9,2486.8,2.95967]
[1751648242964,0.80394,2486.9,2486.8,2.95964]
[1751648244070,0.80393,2487.0,2486.9,0.80393]
[1751648244273,0.80393,2487.0,2486.9,2.13413]
[1751648244473,0.80388,2487.1,2487.0,0.80388]
[1751648244771,1.85207212,2487.1,2487.0,0.80388]
[1751648245278,0.80388,2487.1,2487.0,0.80388]
[1751648245772,3.2078,2487.4,2486.9,1.3302]
[1751648246074,1.85191679,2487.3,2487.2,0.80383]
[1751648246770,1.85191679,2487.3,2487.2,1.51383]
[1751648247272,1.04810679,2487.3,2487.2,1.51383]
[1751648248368,0.80378,2487.4,2487.3,0.80381]
[1751648248563,1.85797393,2487.4,2487.3,2.13001]
[1751648250071,1.05419393,2487.4,2487.3,2.13001]
[1751648250277,3.2078,2487.7,2487.5,0.80374]
[1751648250278,0.80374,2487.6,2487.5,0.80374]
[1751648250480,11.338,2487.8,2487.4,2.00945]
[1751648250672,3.2078,2488.0,2487.5,1.3262]
[1751648250976,1.85780309,2487.9,2487.8,0.80363]
[1751648251670,1.05415309,2487.9,2487.8,0.80363]
[1751648251871,1.85776309,2487.9,2487.8,0.80363]
[1751648252070,1.85776309,2487.9,2487.8,2.14203]
[1751648252471,0.80361,2487.9,2487.8,1.3384]
[1751648252880,0.80365,2487.8,2487.7,0.6674]
[1751648253075,0.80365,2487.8,2487.7,1.47108]
[1751648253473,0.80362,2487.9,2487.8,0.80362]
[1751648254481,44.81341,2488.2,2487.8,0.80362]
[1751648254673,0.80361,2487.9,2487.8,0.80362]
[1751648255879,2.0089,2488.1,2487.7,1.47106]
[1751648256180,0.80365,2487.8,2487.6,4.01149]
[1751648256375,0.80365,2487.8,2487.7,0.80368]
[1751648256679,42.8046,2488.2,2487.7,2.00921]
[1751648256874,0.80359,2488.0,2487.9,0.8036]
[1751648257076,1.04652387,2488.0,2487.9,0.80359]
[1751648257376,3.2078,2488.3,2488.1,0.80354]
[1751648257581,1.04292489,2488.2,2488.0,0.80358]
[1751648257781,4.01131,2488.3,2488.0,0.80358]
[1751648258380,3.2078,2488.3,2487.9,2.1184]
[1751648258579,0.80357,2488.1,2487.9,1.3148]
[1751648258782,1.47474,2488.2,2487.9,2.11841]
[1751648258981,0.80356,2488.1,2487.9,2.11841]
[1751648259480,0.80356,2488.1,2487.9,1.3148]